Cogmind - Beta 15 @@@ ROGUE MODE // 2025.09.13 @ 23:10:35 Player: WitherScout Result: Destroyed by P-70 Sage via exploding Power Conduit Performance ------------- Evolutions (6) 3000 Regions Visited (7) 1400 Robots Destroyed (37) 185 Value Destroyed (1366) 1366 Prototype IDs (3) 60 Alien Tech Used (0) 0 Bonus (200) 200 TOTAL SCORE: 6211 Bonus ------- Pacifist 200 Cogmind --------- Core Integrity 0/1150 Matter 40/300 Energy 98/100 System Corruption 12% Temperature Cool (12) Movement Core (50) Location -4/Factory Parts ------- > --- POWER (2) -------- (None) > --- PROPULSION (8) --- (None) > --- UTILITY (7) ------ Faulty Experimental Optical Array > --- WEAPON (2) ------- (None) > --- INVENTORY (5) ---- Advanced ECM Suite Improved Focal Shield Improved System Restoration Module Autogun Long-range Missile Launcher Peak State ------------ > --- POWER ------------ Light Nuclear Core Light Nuclear Core > --- PROPULSION ------- VTOL Module VTOL Module VTOL Module Xenon Bombardment Thruster Xenon Bombardment Thruster Cooled Nuclear Pulse Thruster Nuclear Pulse Array > --- UTILITY ---------- Small Storage Unit Advanced Targeting Computer Improved Focal Shield Point Defense System Point Defense System Hacking Suite Improved System Restoration Module > --- WEAPON ----------- Railgun Tiamat Missile Launcher > --- INVENTORY -------- Light Nuclear Core Flight Unit VTOL Module Advanced Weight Redist. System Terrain Scanner Advanced ECM Suite Improved Focal Shield Autogun [Rating: 85] Favorites ----------- Power Light Nuclear Core Engine Ion Engine Power Core Light Nuclear Core Propulsion Aluminum Leg Leg Aluminum Leg Wheel Compact Wheel Flight Unit VTOL Module Utility Small Storage Unit Device ECM Suite Storage Small Storage Unit Processor Advanced Targeting Computer Hackware Hacking Suite Protection Light Armor Plating Weapon Minigun Energy Gun Medium Laser Ballistic Gun Minigun Launcher Tiamat Missile Launcher Build | -11 -10 -9 -8 -7 -6 -5 -4 ------- Run | Yrd Mat Mat Mat Fac Fac Fac Fac Slots Evolved 12 | . . 2 2 2 2 2 2 Power 1 | . . . . 1 . . . Propulsion 6 | . . 2 2 . 2 . . Utility 5 | . . . . 1 . 2 2 Weapon . | . . . . . . . . Parts Attached 58 | 6 2 4 12 5 6 15 8 Power 8 | 1 1 . 1 2 1 1 1 Engine 1 | 1 . . . . . . . Core 7 | . 1 . 1 2 1 1 1 Reactor . | . . . . . . . . Propulsion 22 | 2 . 3 6 1 4 5 1 Treads . | . . . . . . . . Leg 10 | . . 3 6 1 . . . Wheel 2 | 2 . . . . . . . Hover . | . . . . . . . . Flight 10 | . . . . . 4 5 1 Utility 17 | 1 1 . 2 2 1 6 4 Device 10 | . . . . 1 1 5 3 Storage 2 | 1 1 . . . . . . Processor 2 | . . . . 1 . . 1 Hackware 1 | . . . . . . 1 . Protection 2 | . . . 2 . . . . Artifact . | . . . . . . . . Weapon 11 | 2 . 1 3 . . 3 2 Energy Gun 1 | 1 . . . . . . . Energy Cannon . | . . . . . . . . Ballistic Gun 7 | 1 . . 3 . . 2 1 Ballistic Cannon . | . . . . . . . . Launcher 3 | . . 1 . . . 1 1 Special Weapon . | . . . . . . . . Impact Weapon . | . . . . . . . . Slashing Weapon . | . . . . . . . . Piercing Weapon . | . . . . . . . . Special Melee Weapon . | . . . . . . . . Unidentified Prototypes 3 | . . . . . . 1 2 Parts Lost 28 | . . 2 4 1 4 3 14 Power 6 | . . 1 . . 1 2 2 Propulsion 12 | . . 1 1 . 2 . 8 Utility 7 | . . . 1 1 1 1 3 Weapon 3 | . . . 2 . . . 1 Highest Loss Streak 14 | . . 2 3 1 2 2 14 To Critical Strikes . | . . . . . . . . Average Backups 6 | 1 6 6 7 5 5 6 6 Power . | . 1 . . . 1 1 1 Propulsion 1 | . 2 2 1 2 1 . 1 Utility 3 | . 1 2 4 3 2 3 2 Weapon . | . . 1 . . . . 1 Tool/Special . | . . . . . . . . Unused Backups 8 | . . 1 2 . . . 5 Power 2 | . . 1 . . . . 1 Propulsion . | . . . . . . . . Utility 5 | . . . 2 . . . 3 Weapon 1 | . . . . . . . 1 Tool/Special . | . . . . . . . . Average Slot Usage (%) 90 | . 98 79 92 98 92 89 74 Engine 1 | . 8 3 6 . . . . Core 9 | . 5 7 2 15 12 10 7 Leg 27 | . . 9 47 45 38 7 . Wheel 3 | . 28 14 . . . . . Flight 9 | . . . . . 7 33 28 Device 5 | . . . . 6 5 10 16 Storage 9 | . 26 22 10 7 6 5 4 Processor 2 | . . . . . 6 5 4 Protection 2 | . . . 6 5 . . . Energy Gun 1 | . 14 6 . . . . . Ballistic Gun 12 | . 14 11 16 15 13 8 3 Launcher 1 | . . 4 1 . . 2 3 Peak Build Rating 85 | 6 9 9 19 32 34 64 85 Average Rating 28 | 4 7 8 15 23 33 48 63 On Entrance 21 | . 6 9 8 19 32 33 64 Naked Turns 26 | . . . . . . . 26 Heaviest Build 39 | 13 18 19 21 26 24 32 39 Greatest Support 97 | 26 26 30 67 77 97 41 44 Greatest Overweight (x) 1 | . . 1 . . . . 1 Average Overweight (x) . | . . . . . . . . Largest Inventory Capacity 8 | 8 8 8 8 8 8 8 8 Average Capacity 7 | 7 8 8 8 8 8 8 7 Most Carried 8 | 3 8 8 8 8 8 8 8 Average Carried 6 | 1 6 6 7 5 5 6 6 Final Capacity 8 | 8 8 8 8 8 8 8 5 Final Carried 8 | 3 8 4 7 8 3 6 5 Class Distribution -------------------- 51% | Scavenger-Mutant 32% | Mutant 16% | Scavenger-Sprinter Dominant Class ---------------- Mutant | -10/Materials Mutant | -9/Materials Mutant | -8/Materials Scavenger-Mutant | -7/Factory Scavenger-Mutant | -6/Factory Scavenger-Sprinter | -5/Factory Scavenger-Sprinter | -4/Factory Resources | -11 -10 -9 -8 -7 -6 -5 -4 ----------- Run | Yrd Mat Mat Mat Fac Fac Fac Fac Matter Collected 1123 | 256 24 91 417 64 161 95 15 Remotely . | . . . . . . . . Salvage Created 1280 | . . 268 557 47 213 95 100 Parts 62 | . . 8 20 4 9 9 12 Haulers Intercepted . | . . . . . . . . Recyclers Shooed 2 | . . 1 1 . . . . Parts Field Recycled . | . . . . . . . . Retrieved Matter . | . . . . . . . . Parts Self-Destructed . | . . . . . . . . Prevented . | . . . . . . . . Kills | -11 -10 -9 -8 -7 -6 -5 -4 ------- Run | Yrd Mat Mat Mat Fac Fac Fac Fac Combat Hostiles Destroyed 34 | . . 6 13 1 4 4 6 Guns 23 | . . 2 11 1 4 4 1 AOE 11 | . . 4 2 . . . 5 Classes Destroyed 8 | . . 3 2 1 . . 2 Worker 1 | . . . . . . . 1 Recycler 1 | . . 1 . . . . . Watcher 1 | . . 1 . . . . . Swarmer 12 | . . . 3 . . 4 5 Grunt 17 | . . 6 8 . 3 . . Sentry 2 | . . . 2 . . . . Programmer 2 | . . . . 1 1 . . Heavy 1 | . . . . . . . 1 Best Kill Streak 8 | . . 8 4 1 3 4 5 Combat Bots Only 6 | . . 6 4 1 3 4 5 Max Kills in Single Turn 3 | . . 2 2 1 1 1 3 Gunslinging . | . . . . . . . . Exploded 3 | . . 1 2 . . . 3 Melee . | . . . . . . . . Uniques/NPCs Destroyed . | . . . . . . . . Combat | -11 -10 -9 -8 -7 -6 -5 -4 -------- Run | Yrd Mat Mat Mat Fac Fac Fac Fac Hostile Shots Fired 361 | . 1 30 107 4 26 28 165 Missed 144 | . . 12 39 2 5 17 69 Intercepted 2 | . . . . . . . 2 Hits 217 | . 1 18 68 2 21 11 96 Melee 24 | . . . . . . . 24 Projectile 193 | . 1 18 68 2 21 11 72 AOE 3 | . . . . . . . 3 Critical Strikes 29 | . . . 4 . 2 . 23 Damage Taken 4253 | . 11 240 1028 103 360 256 2255 Core 1546 | . . 56 155 . 39 64 1232 Absorbed by Shields . | . . . . . . . . Ignored by Resistances 38 | . . . . . . . 38 Core Remaining (%) 92 | 100 100 86 71 100 95 93 . Volleys Fired 109 | . . 15 57 2 18 7 10 Largest 2 | . . 2 2 2 2 2 2 Hottest 81 | . . 70 70 48 48 48 81 Shots Fired 206 | . . 25 110 4 36 14 17 Gun 191 | . . 20 109 4 36 14 8 Cannon . | . . . . . . . . Launcher 15 | . . 5 1 . . . 9 Special . | . . . . . . . . Kinetic 184 | . . 15 107 4 36 14 8 Thermal 7 | . . 5 2 . . . . Explosive 15 | . . 5 1 . . . 9 Electromagnetic . | . . . . . . . . Robot Hit Streak 18 | . . 8 18 12 12 7 5 Robot Miss Streak 5 | . . 5 3 1 1 2 3 Penetration Max . | . . . . . . . . Secondary Targets . | . . . . . . . . Shots Hit Robots 154 | . . 13 86 3 32 9 11 Core Hits 81 | . . 13 33 2 14 7 12 Critical Kills . | . . . . . . . . Critical Parts Destroyed . | . . . . . . . . Critical Strikes 1 | . . . 1 . . . . Destroy 1 | . . . 1 . . . . Melee Attacks . | . . . . . . . . Impact . | . . . . . . . . Slashing . | . . . . . . . . Piercing . | . . . . . . . . Sneak Attacks . | . . . . . . . . Combat Hostiles . | . . . . . . . . Follow-up Attacks . | . . . . . . . . Damage Inflicted 3590 | . . 615 1193 54 552 146 1030 Guns 2108 | . . 137 1083 54 552 146 136 Cannons . | . . . . . . . . Explosions 1437 | . . 478 110 . . . 849 Melee . | . . . . . . . . Ramming 45 | . . . . . . . 45 Kinetic 2045 | . . 74 1083 54 552 146 136 Thermal 63 | . . 63 . . . . . Explosive 1437 | . . 478 110 . . . 849 Electromagnetic . | . . . . . . . . Impact . | . . . . . . . . Slashing . | . . . . . . . . Piercing . | . . . . . . . . Highest Corruption 11 | . . . . . 1 . 11 Average Corruption 2 | . . . . . 1 . 3 Corruption Purged 2 | . . . . . . . 2 Corruption Blocked . | . . . . . . . . Effects 2 | . . . . . 1 . 1 Matter Fused 1 | . . . . . . . 1 Energy Discharges 1 | . . . . . 1 . . Overload Shots . | . . . . . . . . Overflow Damage 147 | . . 39 17 . . . 91 Projectiles . | . . . . . . . . Explosions 147 | . . 39 17 . . . 91 Melee . | . . . . . . . . Knockbacks 1 | . . . . . . . 1 Impact 1 | . . . . . . . 1 Kinetic . | . . . . . . . . Secondary . | . . . . . . . . Self-Inflicted Damage 22 | . . . . . . . 22 Shots . | . . . . . . . . Rammed 8 | . . . . . . . 8 Targets Rammed 8 | . . . . . . . 8 Kicked . | . . . . . . . . Crushed . | . . . . . . . . Highest Temperature 335 | . . 113 33 8 29 331 335 Average Temperature 97 | . . 39 10 6 8 116 151 Received Heat Transfer 883 | . 6 126 504 . 126 . 121 Effects 7 | . . . . . . 4 3 Shutdowns 1 | . . . . . . . 1 Energy Bleed 2 | . . . . . . 1 1 Interference 3 | . . . . . . 2 1 Matter Decay 1 | . . . . . . 1 . Siege Activations . | . . . . . . . . Martial Activations . | . . . . . . . . Shielding Activations . | . . . . . . . . Robots Disrupted . | . . . . . . . . Combat Hostiles . | . . . . . . . . Robots Corrupted . | . . . . . . . . Combat Hostiles . | . . . . . . . . Parts Fried . | . . . . . . . . Impact Corruptions . | . . . . . . . . Robots Melted . | . . . . . . . . Combat Hostiles . | . . . . . . . . Parts Melted . | . . . . . . . . Heat Transferred 185 | . . 185 . . . . . Parts Sabotaged . | . . . . . . . . Parts Stolen . | . . . . . . . . Parts Stripped . | . . . . . . . . Power Chain Reactions . | . . . . . . . . Alert | -11 -10 -9 -8 -7 -6 -5 -4 ------- Run | Yrd Mat Mat Mat Fac Fac Fac Fac Maximum Alert Level 1 | . . . . . . . 1 Low Security (%) 97 | 100 100 100 100 100 100 100 65 Level 1 2 | . . . . . . . 34 Level 2 . | . . . . . . . . Level 3 . | . . . . . . . . Level 4 . | . . . . . . . . Level 5 . | . . . . . . . . High Security . | . . . . . . . . Max Security . | . . . . . . . . Peak Influence 314 | . 15 195 96 30 50 70 314 Initial 28 | . . . . 28 . 2 . Average 27 | . 1 30 60 3 8 11 134 Influence Increases 1178 | . 15 235 306 30 100 90 402 Destroy 0b10 Robot/C 680 | . . 120 260 20 80 80 120 Destroy 0b10 Robot/NC 15 | . . 10 . . . . 5 Destroy Leader 122 | . . 22 40 10 20 10 20 Disable Machine 45 | . . 45 . . . . . Destroy Structure 166 | . . 38 6 . . . 122 Partial Spotted 15 | . . . . . . . 15 Lose Combat Pursuer 135 | . 15 . . . . . 120 Influence Decreases 1001 | . 15 235 244 92 94 96 225 Entered New Map 38 | . . . . 34 . 4 . Time Decay 593 | . 15 65 204 58 84 82 85 Lost Part 220 | . . 20 40 . 10 10 140 Purge Threat 150 | . . 150 . . . . . Squads Dispatched 15 | . 1 1 . 2 4 2 5 Investigation 3 | . . . . . 2 1 . Extermination 5 | . . . . 2 1 1 1 Reinforcement 7 | . 1 1 . . 1 . 4 Assault . | . . . . . . . . Garrison . | . . . . . . . . Intercept . | . . . . . . . . Searches Triggered . | . . . . . . . . Construction Impeded 1 | . . . . . . . 1 Haulers Reinforced . | . . . . . . . . Active Scanning Responses . | . . . . . . . . Cargo Convoy Interrupts . | . . . . . . . . Stealth | -11 -10 -9 -8 -7 -6 -5 -4 --------- Run | Yrd Mat Mat Mat Fac Fac Fac Fac Distress Signals 3 | . 1 . 2 . . . . Communications Jammed . | . . . . . . . . Distress Signals . | . . . . . . . . Times Spotted 75 | . 2 8 16 2 6 17 24 Peak Tracking Total 12 | . 1 6 5 1 3 11 12 Tactical Retreats 3 | . 1 . . . . . 2 Traps | -11 -10 -9 -8 -7 -6 -5 -4 ------- Run | Yrd Mat Mat Mat Fac Fac Fac Fac Traps Triggered 2 | . . . . 1 . 1 . Indirectly . | . . . . . . . . Trap Hack Attempts . | . . . . . . . . Triggered . | . . . . . . . . Disarmed . | . . . . . . . . Reprogrammed . | . . . . . . . . Reused . | . . . . . . . . Traps Extracted . | . . . . . . . . Installed . | . . . . . . . . Triggered . | . . . . . . . . Machines | -11 -10 -9 -8 -7 -6 -5 -4 ---------- Run | Yrd Mat Mat Mat Fac Fac Fac Fac Machines Disabled 3 | . . 3 . . . . . Max in Single Turn 2 | . . 2 . . . . . Machines Repaired . | . . . . . . . . Machines Dismantled . | . . . . . . . . Machines Sabotaged . | . . . . . . . . Overloaded Fab Kills . | . . . . . . . . Hacking | -11 -10 -9 -8 -7 -6 -5 -4 --------- Run | Yrd Mat Mat Mat Fac Fac Fac Fac Machines Accessed 11 | . . 1 . 2 3 4 1 Terminals 7 | . . 1 . 2 1 2 1 Fabricators 2 | . . . . . 2 . . Repair Stations . | . . . . . . . . Recycling Units 2 | . . . . . . 2 . Scanalyzers . | . . . . . . . . Garrison Access . | . . . . . . . . Total Hacks 25 | . . 2 . 3 8 10 2 Successful 9 | . . 1 . 1 2 5 . Failed 16 | . . 1 . 2 6 5 2 Catastrophic 2 | . . . . 1 . 1 . Database Lockouts . | . . . . . . . . Manual 3 | . . . . . . 2 1 Terminals 15 | . . 2 . 3 3 5 2 Fabricators 5 | . . . . . 5 . . Repair Stations . | . . . . . . . . Recycling Units 5 | . . . . . . 5 . Scanalyzers . | . . . . . . . . Garrison Access . | . . . . . . . . Terminal Hacks 3 | . . 1 . 1 . 1 . Part Schematic 1 | . . . . 1 . . . Unreport Threat 1 | . . 1 . . . . . Dispatch Records 1 | . . . . . . 1 . Fabricator Hacks 2 | . . . . . 2 . . Load Schematic 1 | . . . . . 1 . . Build 1 | . . . . . 1 . . Repair Station Hacks . | . . . . . . . . Recycling Unit Hacks 4 | . . . . . . 4 . Process 2 | . . . . . . 2 . Retrieve Matter 2 | . . . . . . 2 . Scanalyzer . | . . . . . . . . Garrison Access Hacks . | . . . . . . . . Unauthorized Hacks . | . . . . . . . . Terminals . | . . . . . . . . Fabricators . | . . . . . . . . Repair Stations . | . . . . . . . . Recycling Units . | . . . . . . . . Scanalyzers . | . . . . . . . . Garrison Access . | . . . . . . . . Data Cores Recovered . | . . . . . . . . Used . | . . . . . . . . Hacking Detections 9 | . . 1 . 2 3 2 1 Full Trace Events 3 | . . . . . 2 1 . Feedback Events . | . . . . . . . . Feedback Blocked . | . . . . . . . . Robot Schematics Acquired . | . . . . . . . . Robots Built . | . . . . . . . . Authchips . | . . . . . . . . Time . | . . . . . . . . Total Robot Build Rating . | . . . . . . . . Part Schematics Acquired 1 | . . . . 1 . . . Parts Built 2 | . . . . . 2 . . Authchips . | . . . . . . . . Time 84 | . . . . . 84 . . Total Part Build Rating 8 | . . . . . 8 . . Parts Repaired . | . . . . . . . . Time . | . . . . . . . . Parts Recycled . | . . . . . . . . Recycled Matter 384 | . . . . . . 384 . Retrieved Matter 384 | . . . . . . 384 . Retrieved Components . | . . . . . . . . Parts Scanalyzed . | . . . . . . . . Part Schematics Acquired . | . . . . . . . . Parts Damaged . | . . . . . . . . Bothacking | -11 -10 -9 -8 -7 -6 -5 -4 ------------ Run | Yrd Mat Mat Mat Fac Fac Fac Fac Used RIF Installer . | . . . . . . . . Robots Hacked . | . . . . . . . . Non-combat . | . . . . . . . . Combat . | . . . . . . . . Robot Hacks Applied . | . . . . . . . . Relay Couplers Released . | . . . . . . . . Fabnet Peak Effective % . | . . . . . . . . Robots Rewired . | . . . . . . . . Allies Hacked . | . . . . . . . . Hacks Repelled . | . . . . . . . . Allies | -11 -10 -9 -8 -7 -6 -5 -4 -------- Run | Yrd Mat Mat Mat Fac Fac Fac Fac Total Allies . | . . . . . . . . Largest Group . | . . . . . . . . Highest-Rated Group . | . . . . . . . . Highest-Rated Ally . | . . . . . . . . Total Orders . | . . . . . . . . Ally Attacks . | . . . . . . . . Total Damage . | . . . . . . . . Kills . | . . . . . . . . Allies Corrupted . | . . . . . . . . Allies Melted . | . . . . . . . . Intel | -11 -10 -9 -8 -7 -6 -5 -4 ------- Run | Yrd Mat Mat Mat Fac Fac Fac Fac Active Infowar (turns) 1133 | . . . . 709 263 161 . Terrain 161 | . . . . . . 161 . ECM 972 | . . . . 709 263 . . Robot Analysis Total . | . . . . . . . . Derelict Logs Recovered . | . . . . . . . . Drone Launches . | . . . . . . . . Drone Recoveries . | . . . . . . . . Exploration | -11 -10 -9 -8 -7 -6 -5 -4 ------------- Run | Yrd Mat Mat Mat Fac Fac Fac Fac Turns Passed 2882 | 52 149 304 453 710 475 516 223 Spaces Moved 2703 | 40 137 173 209 426 361 829 528 Core 61 | 4 . . . . . . 57 Treads . | . . . . . . . . Legs 880 | . . 77 209 426 168 . . Wheels 269 | 36 137 96 . . . . . Hover . | . . . . . . . . Flight 1493 | . . . . . 193 829 471 Fastest Speed 15 | 50 90 90 120 121 71 19 15 Average Speed 68 | 86 90 103 121 121 96 31 24 Slowest Speed 126 | 100 90 120 122 126 125 74 100 Overloaded Moves 43 | . . . . . . . 43 Propulsion Burnouts . | . . . . . . . . Robots Hopped 20 | . . . . . 4 11 5 Potential Cave-ins . | . . . . . . . . Cave-ins Triggered . | . . . . . . . . Exploration Rate (%) 20 | 4 40 24 26 12 12 22 21 Regions Visited 7 Branch Regions . Pre-discovered Areas . | . . . . . . . . Known Exits Taken . | . . . . . . . . Unknown Exits Taken 7 | 1 1 1 1 1 1 1 . Scrap Searched . | . . . . . . . . Spaces Dug . | . . . . . . . . Terrain Destroyed 153 | . . 41 6 . . . 106 Melee . | . . . . . . . . Projectile 2 | . . . . . . . 2 AOE 151 | . . 41 6 . . . 104 Terrain Rammed . | . . . . . . . . Walls Destroyed . | . . . . . . . . Machines Disabled . | . . . . . . . . Actions | -11 -10 -9 -8 -7 -6 -5 -4 --------- Run | Yrd Mat Mat Mat Fac Fac Fac Fac Total 3536 | 54 162 276 319 614 452 1060 599 Wait 604 | 6 19 81 25 178 64 199 32 Move 2659 | 39 136 172 208 425 352 807 520 Hop 17 | . . . . . 4 10 3 Pick Up 30 | 3 4 1 7 2 2 5 6 Fast Attach 32 | 6 2 . 8 1 1 9 5 Attach 27 | . . 4 2 3 8 4 6 Detach 14 | . 1 . . 1 1 8 3 Swap 10 | . . 1 4 1 . 3 1 Drop 26 | . . 2 8 1 2 8 5 Fire 109 | . . 15 57 2 18 7 10 Melee . | . . . . . . . . Ram 8 | . . . . . . . 8 Kick . | . . . . . . . . Crush . | . . . . . . . . Escape Stasis . | . . . . . . . . Rewire . | . . . . . . . . Trap . | . . . . . . . . Miscellaneous . | . . . . . . . . Route ------- -11/Scrapyard -10/Materials -9/Materials -8/Materials -7/Factory -6/Factory -5/Factory -4/Factory History --------- Turn | Location | Event 18 | -11/Scrapyard | Discovered new exit (range 16) 53 | -11/Scrapyard | Entered Materials 54 | -10/Materials | Met a group of wandering Federalists 166 | -10/Materials | Discovered new exit (range 10) 202 | -10/Materials | Entered another Materials area 202 | -9/Materials | Evolved 2 slots: Propulsion x2 308 | -9/Materials | Build established: Mutant 484 | -9/Materials | Discovered new exit (range 11) 506 | -9/Materials | Entered another Materials area 506 | -8/Materials | Evolved 2 slots: Propulsion x2 941 | -8/Materials | Discovered new exit (range 16) 943 | -8/Materials | Lost 3 parts (1u2w) 959 | -8/Materials | Entered Factory 959 | -7/Factory | Evolved 2 slots: Power x1, Utility x1 1133 | -7/Factory | Build established: Scavenger-Mutant 1655 | -7/Factory | Discovered new exit (range 11) 1669 | -7/Factory | Entered another Factory area 1669 | -6/Factory | Evolved 2 slots: Propulsion x2 1948 | -6/Factory | Fabricated Xenon Bombardment Thruster (x2) 2115 | -6/Factory | Discovered new exit (range 16) 2144 | -6/Factory | Entered another Factory area 2144 | -5/Factory | Evolved 2 slots: Utility x2 2421 | -5/Factory | Spotted B-75 Beast 2603 | -5/Factory | Build established: Scavenger-Sprinter 2655 | -5/Factory | Discovered new exit (range 15) 2660 | -5/Factory | Entered another Factory area 2660 | -4/Factory | Evolved 2 slots: Utility x2 2857 | -4/Factory | Core integrity fell below 50% 2868 | -4/Factory | Core integrity fell below 20% 2874 | -4/Factory | Lost 14 parts (2p8n3u1w) 2880 | -4/Factory | System corruption reached 10% 2883 | -4/Factory | Destroyed by P-70 Sage via exploding Power Conduit Last Messages --------------- P-70 Sage knocked back. ALERT: Potential suspicious activity detected, Programmers report to Factory Zone 5T. R-10 Processor collects Adv. Weight Redist. System. Slammed into U-05 Engineer. ALERT: Construction progress impeded, dispatching reinforcements to local area. Slammed into C-35 Carver. P-70 Sage resets U-05 Engineer, system corruption cleaned. P-70 Sage resets P-70 Sage, system corruption cleaned. Acquired Prototype Processor. Identified Exp. Optical Array. Faulty integration triggers system corruption (+4). Slammed into C-35 Carver. Power Conduit explodes. C-35 Carver destroyed. Map ----- +----------------------------------------------------+ | ?????????????????????????????????????????????????? | | ?????????????????????????????????????????????????? | | ?????????????????????????????????????????????????? | | ?????????????????????????????????????????????????? | | ?????????????????????????????????????????????????? | | #### ????????????????????????????????????????????? | | ????????????????????????????????????????????? | | ????????????????????????????????????????????? | | ???????????????????????????????????????????? | | ???????????????????????????????????????????? | | ???????????????????????????????????????????? | | ####?????????????????????????????????????????????? | | #?????????????????????????????????????????????? | | #??????????????????#######????????????????????? | | #????????????????? #????????????????????? | | "" #????????????????? #????????????????????? | | "" #???????????????""""""" #?????????? ?????? | | "" #???????????#??? #?????????# ????? | | "" #???????????# """"""""" #?????????# #????? | | "" #???????????# #?????????# #????? | | "" #???????????# """"""""" #?????????# #????? | | #???????????# #?????????# #????? | | #???????????# """"""""" #?????????# #????? | | #???????????# c#?????????# +????? | | #+##???????????# c#?????????# #????? | | # #? ????????# p p@% #?????????# #????? | | # #? ##########+################### ###### | | # ## | | # ## | | # ## | | # ## | | ## ! ! ! | | ###?###############+#############/######+######### | | ????????????????? ????# / # | | ??????????????? ??# " # | | ?????????????# # # """"""" | | ?????????????# # = # """"""" | | ?????????????# ! # # """"""" | | ?????????????# # # """"""" | | ?????????????# ] # # | | ?????????????# # # """"""" | | ?????????????# # #| """"""" | | ?????????????# # "F"" # """""""? | | ?????????????# # """" # """"""?? | | ?????????????# ! # ? # ???? | | ??????????????############??????############?????? | | | | | | | | | +----------------------------------------------------+ Best States ------------- Heat Dissipation 43 Energy Generation 25 Energy Capacity 250 Matter Stores 300 Matter Capacity 300 Sight Range 16 Terrain Scan Range 14 Terrain Scan Density 10 ECM Strength 1 Additional Mass Support 9 Armor Coverage 225 Resistance: KI 25 Point Defense Rating 160 Evasion (%) 74 Targeting Accuracy 8 Offensive Hacking 10 Item Schematics ----------------- Xenon Bombardment Thruster | -7/Factory | Hacked Robot Schematics ------------------ None Fabricated ------------ Xenon Bombardment Thruster | x2 | -6/Factory Repaired ---------- Nothing Alien Tech Used ----------------- None Achievements -------------- No Explosion For You Challenges ------------ None Game ------ Seed TerrabombBeamMount Manual? 0 Play Time 00:56:50 Cumulative 29.3 hours Start 2025.09.13 @ 22:10:55 End 2025.09.13 @ 23:10:35 Sessions 1 Manual Loads 0 Difficulty Rogue Special Mode None Game No. 57 Rogue 57 Adventurer 0 Explorer 0 Win Type - Total 0 Types 0/0/0/0/0/0/0/0/0/0 Lore% 9 Gallery% 23 Achievement% 26 Wizard Run 0 Options --------- Layout 1 ASCII 1 Keyboard 0 Movement Numpad Keybinds 0 Fullscreen 1 Font 24/Cog Map View 50x35 Zoom Use 0% Tactical HUD 0 Map Filters NONE Filters NONE Steam 0 RUN: 767a7dc3-b02b-450c-afab-7614486413d5